fUST/lending_fUST_20240906
["ID","MTS","AMOUNT","RATE_DAILY","PERIOD"]
[337352145,1725625839486,-500.0,0.00019177,2]
[337352146,1725625839496,-500.0,0.00019177,2]
[337352147,1725625839507,-500.0,0.00019177,2]
[337352148,1725625839516,-500.0,0.00019178,2]
[337352149,1725625839527,-391.33040984,0.00019178,2]
[337352150,1725625839537,-1235.86,0.00019178,2]
[337352151,1725625839548,-500.0,0.00019178,2]
[337352152,1725625839558,-19777.95599129,0.00019178,2]
[337352153,1725625839626,-7946.36499197,0.00019178,2]
[337352154,1725625839902,-30729.98552104,0.00019178,2]
[337352155,1725625839914,-19571.69347011,0.00019178,2]
[337352846,1725625849002,-22709.62690287,0.00019178,2]
[337352951,1725625850077,-13915.47312272,0.00019178,2]
[337352953,1725625850086,-462.25,0.00019178,2]
[337352955,1725625850097,-500.0,0.00019178,2]
[337352957,1725625850107,-2591.4379,0.00019178,2]
[337352959,1725625850117,-2591.4379,0.00019178,2]
[337352961,1725625850127,-500.0,0.00019178,2]
[337352963,1725625850137,-2591.4379,0.00019178,2]
[337352965,1725625850147,-500.0,0.00019178,2]
[337352967,1725625850156,-500.0,0.00019178,2]
[337352969,1725625850168,-561.85,0.00019178,2]
[337352971,1725625850178,-2591.4379,0.00019178,2]
[337352973,1725625850187,-773.37,0.00019178,2]
[337352975,1725625850199,-500.0,0.00019178,2]
[337352977,1725625850209,-2591.4379,0.00019178,2]
[337352980,1725625850222,-2591.4379,0.00019178,2]
[337352982,1725625850232,-500.0,0.00019178,2]
[337352984,1725625850241,-515.88,0.00019178,2]
[337352986,1725625850251,-1770.61,0.00019178,2]
[337352988,1725625850260,-500.0,0.00019178,2]
[337352990,1725625850273,-500.0,0.00019178,2]
[337352991,1725625850282,-1235.42,0.00019178,2]
[337352993,1725625850293,-500.0,0.00019178,2]
[337352995,1725625850304,-500.0,0.00019178,2]
[337352997,1725625850317,-500.0,0.00019178,2]
[337353000,1725625850329,-500.0,0.00019178,2]
[337353002,1725625850338,-500.0,0.00019178,2]
[337353004,1725625850349,-500.0,0.00019178,2]
[337353006,1725625850360,-777.75,0.00019178,2]
[337353008,1725625850370,-500.0,0.00019178,2]
[337353010,1725625850380,-505.83141265,0.00019178,2]
[337353012,1725625850389,-500.0,0.00019178,2]
[337353014,1725625850399,-500.0,0.00019178,2]
[337353016,1725625850409,-2672.99,0.00019178,2]
[337353017,1725625850419,-500.0,0.00019178,2]
[337353019,1725625850429,-1254.798315,0.00019178,2]
[337353021,1725625850439,-1254.798315,0.00019178,2]
[337353023,1725625850448,-1254.798315,0.00019178,2]
[337353025,1725625850458,-500.0,0.00019178,2]
[337353027,1725625850467,-1254.798315,0.00019178,2]
[337353029,1725625850477,-1254.798315,0.00019178,2]
[337353031,1725625850487,-500.0,0.00019178,2]
[337353033,1725625850498,-1254.798315,0.00019178,2]
[337353035,1725625850510,-500.0,0.00019178,2]
[337353037,1725625850524,-500.0,0.00019178,2]
[337353039,1725625850534,-573.17,0.00019178,2]
[337353041,1725625850545,-500.0,0.00019178,2]
[337353043,1725625850557,-500.0,0.00019178,2]
[337353045,1725625850567,-500.0,0.00019178,2]
[337353047,1725625850577,-500.0,0.00019178,2]
[337353049,1725625850587,-500.0,0.00019178,2]
[337353051,1725625850598,-521.79208002,0.00019178,2]
[337353053,1725625850608,-500.0,0.00019178,2]
[337353055,1725625850618,-1225.219292,0.00019178,2]
[337353057,1725625850629,-500.0,0.00019178,2]
[337353059,1725625850639,-8736.6,0.00019178,2]
[337353061,1725625850648,-1225.219292,0.00019178,2]
[337353063,1725625850657,-500.0,0.00019178,2]
[337353065,1725625850672,-500.0,0.00019178,2]
[337353067,1725625850682,-1225.219292,0.00019178,2]
[337353069,1725625850692,-500.0,0.00019178,2]
[337353071,1725625850702,-500.0,0.00019178,2]
[337353073,1725625850713,-500.0,0.00019178,2]
[337353075,1725625850723,-500.0,0.00019178,2]
[337353077,1725625850732,-500.0,0.00019178,2]
[337353079,1725625850742,-500.0,0.00019178,2]
[337353081,1725625850751,-500.0,0.00019178,2]
[337353083,1725625850762,-151.0,0.00019178,2]
[337353085,1725625850774,-151.0,0.00019178,2]
[337353086,1725625850783,-500.0,0.00019178,2]
[337353087,1725625850793,-1225.219292,0.00019178,2]
[337353088,1725625850804,-475.27128082,0.00019178,2]
[337353089,1725625850816,-1225.219292,0.00019178,2]
[337353090,1725625850827,-1225.219292,0.00019178,2]
[337353091,1725625850838,-151.0,0.00019178,2]
[337353093,1725625850848,-500.0,0.00019178,2]
[337353095,1725625850859,-500.0,0.00019178,2]
[337353097,1725625850868,-589.26,0.00019178,2]
[337353099,1725625850877,-2133.12,0.00019178,2]
[337353101,1725625850887,-500.0,0.00019178,2]
[337353103,1725625850897,-500.0,0.00019178,2]
[337353105,1725625850907,-500.0,0.00019178,2]
[337353107,1725625850918,-500.0,0.00019178,2]
[337353109,1725625850928,-500.0,0.00019178,2]
[337353112,1725625850939,-500.0,0.00019178,2]
[337353114,1725625850949,-501.88,0.00019178,2]
[337353116,1725625850961,-500.0,0.00019178,2]
[337353118,1725625850971,-2129.93,0.00019178,2]
[337353120,1725625850980,-889.73,0.00019178,2]
[337353122,1725625850989,-151.0,0.00019178,2]
[337353124,1725625851000,-548.21,0.00019178,2]
[337353126,1725625851011,-151.0,0.00019178,2]
[337353128,1725625851024,-151.0,0.00019178,2]
[337353130,1725625851035,-500.0,0.00019178,2]
[337353132,1725625851050,-500.0,0.00019178,2]
[337353134,1725625851059,-626.3,0.00019178,2]
[337353136,1725625851071,-673.66,0.00019178,2]
[337353138,1725625851080,-500.0,0.00019178,2]
[337353140,1725625851089,-2237.53,0.00019178,2]
[337353143,1725625851100,-500.0,0.00019178,2]
[337353145,1725625851110,-1441.694523,0.00019178,2]
[337353147,1725625851119,-500.0,0.00019178,2]
[337353149,1725625851129,-1441.694523,0.00019178,2]
[337353151,1725625851138,-4268.75,0.00019178,2]
[337353153,1725625851148,-1441.694523,0.00019178,2]
[337353155,1725625851157,-500.0,0.00019178,2]
[337353157,1725625851166,-487.89225779,0.00019178,2]
[337353158,1725625851175,-500.0,0.00019178,2]
[337353161,1725625851184,-1441.694523,0.00019178,2]
[337353163,1725625851194,-1441.694523,0.00019178,2]
[337353164,1725625851203,-1441.694523,0.00019178,2]
[337353166,1725625851213,-500.0,0.00019178,2]
[337353169,1725625851223,-500.0,0.00019178,2]
[337353171,1725625851233,-500.0,0.00019178,2]
[337353173,1725625851246,-3800.089071,0.00019178,2]
[337353175,1725625851257,-3800.089071,0.00019178,2]
[337353177,1725625851267,-175.41172744,0.00019178,2]
[337353179,1725625851284,-3800.089071,0.00019178,2]
[337353181,1725625851297,-500.0,0.00019178,2]
[337353183,1725625851307,-500.0,0.00019178,2]
[337353185,1725625851316,-500.0,0.00019178,2]
[337353187,1725625851326,-172.169871,0.00019178,2]
[337353189,1725625851335,-500.0,0.00019178,2]
[337353191,1725625851345,-172.169871,0.00019178,2]
[337353193,1725625851354,-3800.089071,0.00019178,2]
[337353195,1725625851363,-172.169871,0.00019178,2]
[337353197,1725625851373,-3800.089071,0.00019178,2]
[337353199,1725625851382,-3800.089071,0.00019178,2]
[337353201,1725625851392,-500.0,0.00019178,2]
[337353203,1725625851401,-500.0,0.00019178,2]
[337353205,1725625851410,-256.52233819,0.00019178,2]
[337353207,1725625851419,-151.0,0.00019178,2]
[337353209,1725625851428,-151.0,0.00019178,2]
[337353211,1725625851437,-172.169871,0.00019178,2]
[337353213,1725625851447,-172.169871,0.00019178,2]
[337353215,1725625851458,-151.0,0.00019178,2]
[337353217,1725625851467,-500.0,0.00019178,2]
[337353219,1725625851476,-172.169871,0.00019178,2]
[337353221,1725625851486,-460.07674919,0.00019178,2]
[337353223,1725625851496,-500.0,0.00019178,2]
[337353225,1725625851509,-500.0,0.00019178,2]
[337353228,1725625851519,-500.0,0.00019178,2]
[337353230,1725625851535,-500.0,0.00019178,2]
[337353232,1725625851545,-500.0,0.00019178,2]
[337353234,1725625851557,-500.0,0.00019178,2]
[337353236,1725625851570,-151.0,0.00019178,2]
[337353238,1725625851580,-151.0,0.00019178,2]
[337353240,1725625851589,-500.0,0.00019178,2]
[337353242,1725625851600,-151.0,0.00019178,2]
[337353244,1725625851610,-500.0,0.00019178,2]
[337353246,1725625851621,-500.0,0.00019178,2]
[337353248,1725625851631,-500.0,0.00019178,2]
[337353250,1725625851641,-1500.45,0.00019178,2]
[337353253,1725625851651,-500.0,0.00019178,2]
[337353255,1725625851664,-500.0,0.00019178,2]
[337353257,1725625851673,-1592.51,0.00019178,2]
[337353259,1725625851683,-504.0737863,0.00019178,2]
[337353261,1725625851693,-493.112748,0.00019178,2]
[337353263,1725625851703,-493.112748,0.00019178,2]
[337353265,1725625851714,-493.112748,0.00019178,2]
[337353267,1725625851724,-500.0,0.00019178,2]
[337353269,1725625851735,-500.0,0.00019178,2]
[337353272,1725625851745,-500.0,0.00019178,2]
[337353274,1725625851755,-493.112748,0.00019178,2]
[337353276,1725625851765,-493.112748,0.00019178,2]
[337353278,1725625851779,-493.112748,0.00019178,2]
[337353280,1725625851791,-394.895529,0.00019178,2]
[337353282,1725625851801,-500.0,0.00019178,2]
[337353284,1725625851812,-394.895529,0.00019178,2]
[337353286,1725625851825,-8301.056811,0.00019178,2]
[337353288,1725625851837,-500.0,0.00019178,2]
[337353290,1725625851847,-394.895529,0.00019178,2]
[337353293,1725625851857,-557.81,0.00019178,2]
[337353295,1725625851867,-8301.056811,0.00019178,2]
[337353297,1725625851876,-8301.056811,0.00019178,2]
[337353299,1725625851886,-500.0,0.00019178,2]
[337353301,1725625851896,-151.0,0.00019178,2]
[337353303,1725625851906,-1568.47,0.00019178,2]
[337353305,1725625851917,-222.161954,0.00019178,2]
[337353307,1725625851928,-500.0,0.00019178,2]
[337353309,1725625851938,-500.0,0.00019178,2]
[337353311,1725625851947,-394.895529,0.00019178,2]
[337353313,1725625851958,-500.0,0.00019178,2]
[337353315,1725625851968,-394.895529,0.00019178,2]
[337353317,1725625851978,-500.0,0.00019178,2]
[337353319,1725625851988,-500.0,0.00019178,2]
[337353321,1725625851998,-394.895529,0.00019178,2]
[337353323,1725625852008,-500.0,0.00019178,2]
[337353326,1725625852018,-8301.056811,0.00019178,2]
[337353328,1725625852028,-8301.056811,0.00019178,2]
[337353330,1725625852038,-151.0,0.00019178,2]
[337353332,1725625852047,-8301.056811,0.00019178,2]
[337353334,1725625852056,-151.0,0.00019178,2]
[337353336,1725625852067,-2079.22,0.00019178,2]
[337353338,1725625852080,-524.82658417,0.00019178,2]
[337353340,1725625852090,-151.0,0.00019178,2]
[337353342,1725625852100,-151.0,0.00019178,2]
[337353345,1725625852113,-151.0,0.00019178,2]
[337353347,1725625852124,-2144.52,0.00019178,2]
[337353349,1725625852137,-151.0,0.00019178,2]
[337353351,1725625852148,-500.0,0.00019178,2]
[337353354,1725625852159,-778.33,0.00019178,2]
[337353356,1725625852168,-9710.85,0.00019178,2]
[337353358,1725625852178,-151.0,0.00019178,2]
[337353360,1725625852187,-277.60250945,0.00019178,2]
[337353362,1725625852197,-247.230336,0.00019178,2]
[337353364,1725625852207,-500.0,0.00019178,2]
[337353366,1725625852217,-151.0,0.00019178,2]
[337353368,1725625852226,-151.0,0.00019178,2]
[337353370,1725625852238,-500.0,0.00019178,2]
[337353372,1725625852248,-151.0,0.00019178,2]
[337353374,1725625852258,-151.0,0.00019178,2]
[337353376,1725625852268,-655.5,0.00019178,2]
[337353378,1725625852289,-500.0,0.00019178,2]
[337353380,1725625852300,-198.688948,0.00019178,2]
[337353382,1725625852311,-500.0,0.00019178,2]
[337353385,1725625852322,-500.0,0.00019178,2]
[337353387,1725625852333,-649.16,0.00019178,2]
[337353389,1725625852343,-2147.92,0.00019178,2]
[337353391,1725625852353,-500.0,0.00019178,2]
[337353393,1725625852364,-638.179359,0.00019178,2]
[337353395,1725625852374,-638.179359,0.00019178,2]
[337353397,1725625852383,-638.179359,0.00019178,2]
[337353399,1725625852393,-500.0,0.00019178,2]
[337353401,1725625852405,-1095.62,0.00019178,2]
[337353403,1725625852416,-500.0,0.00019178,2]
[337353405,1725625852427,-500.0,0.00019178,2]
[337353407,1725625852437,-638.179359,0.00019178,2]
[337353409,1725625852447,-638.179359,0.00019178,2]
[337353412,1725625852457,-4056.18,0.00019178,2]
[337353414,1725625852468,-3429.02,0.00019178,2]
[337353416,1725625852479,-638.179359,0.00019178,2]
[337353418,1725625852489,-500.0,0.00019178,2]
[337353419,1725625852499,-618.3,0.00019178,2]
[337353422,1725625852510,-882.3,0.00019178,2]
[337353424,1725625852520,-500.0,0.00019178,2]
[337353425,1725625852530,-500.0,0.00019178,2]
[337353427,1725625852540,-500.0,0.00019178,2]
[337353429,1725625852550,-500.0,0.00019178,2]
[337353431,1725625852560,-500.0,0.00019178,2]
[337353433,1725625852570,-11086.34,0.00019178,2]
[337353435,1725625852580,-11086.34,0.00019178,2]
[337353437,1725625852590,-512.38,0.00019178,2]
[337353439,1725625852600,-11086.34,0.00019178,2]
[337353441,1725625852609,-3056.15,0.00019178,2]
[337353443,1725625852620,-11086.34,0.00019178,2]
[337353445,1725625852631,-11086.34,0.00019178,2]
[337353447,1725625852641,-501.99,0.00019178,2]
[337353449,1725625852651,-11086.34,0.00019178,2]
[337353451,1725625852666,-151.0,0.00019178,2]
[337353453,1725625852676,-587.94744208,0.00019178,2]
[337353455,1725625852686,-11086.34,0.00019178,2]
[337353457,1725625852696,-151.0,0.00019178,2]
[337353459,1725625852707,-11086.34,0.00019178,2]
[337353461,1725625852718,-151.0,0.00019178,2]
[337353463,1725625852729,-11086.34,0.00019178,2]
[337353465,1725625852739,-1843.54,0.00019178,2]
[337353467,1725625852749,-11086.34,0.00019178,2]
[337353469,1725625852759,-11086.34,0.00019178,2]
[337353471,1725625852769,-11086.34,0.00019178,2]
[337353474,1725625852788,-11086.34,0.00019178,2]
[337353476,1725625852800,-564.76,0.00019178,2]
[337353478,1725625852810,-11086.34,0.00019178,2]
[337353480,1725625852824,-500.0,0.00019178,2]
[337353482,1725625852834,-11086.34,0.00019178,2]
[337353484,1725625852844,-11086.34,0.00019178,2]
[337353486,1725625852854,-11086.34,0.00019178,2]
[337353488,1725625852864,-500.0,0.00019178,2]
[337353490,1725625852874,-11086.34,0.00019178,2]
[337353492,1725625852884,-151.0,0.00019178,2]
[337353494,1725625852894,-11086.34,0.00019178,2]
[337353496,1725625852905,-500.0,0.00019178,2]
[337353498,1725625852916,-11086.34,0.00019178,2]
[337353500,1725625852926,-151.0,0.00019178,2]
[337353502,1725625852936,-11086.34,0.00019178,2]
[337353504,1725625852947,-151.0,0.00019178,2]
[337353506,1725625852959,-11086.34,0.00019178,2]
[337353508,1725625852969,-2171.42,0.00019178,2]
[337353510,1725625852979,-11086.34,0.00019178,2]
[337353512,1725625852990,-11086.49862077,0.00019178,2]
[337353514,1725625853000,-2297.47,0.00019178,2]
[337353516,1725625853011,-500.0,0.00019178,2]
[337353518,1725625853021,-500.0,0.00019178,2]
[337353520,1725625853032,-756.98,0.00019178,2]
[337353522,1725625853043,-500.0,0.00019178,2]
[337353524,1725625853053,-500.0,0.00019178,2]
[337353526,1725625853064,-1083.74,0.00019178,2]
[337353528,1725625853074,-3522.6,0.00019178,2]
[337353530,1725625853084,-2391.77,0.00019178,2]
[337353532,1725625853095,-500.0,0.00019178,2]
[337353534,1725625853105,-500.0,0.00019178,2]
[337353536,1725625853118,-1947.37,0.00019178,2]
[337353538,1725625853129,-487.37135,0.00019178,2]
[337353540,1725625853140,-487.37135,0.00019178,2]
[337353542,1725625853151,-487.37135,0.00019178,2]
[337353544,1725625853161,-800.01,0.00019178,2]
[337353546,1725625853171,-500.0,0.00019178,2]
[337353548,1725625853181,-644.46,0.00019178,2]
[337353550,1725625853191,-500.0,0.00019178,2]
[337353552,1725625853201,-487.37135,0.00019178,2]
[337353554,1725625853212,-487.37135,0.00019178,2]
[337353556,1725625853222,-500.0,0.00019178,2]
[337353558,1725625853233,-487.37135,0.00019178,2]
[337353560,1725625853243,-500.0,0.00019178,2]
[337353562,1725625853253,-500.0,0.00019178,2]
[337353564,1725625853263,-759.9,0.00019178,2]
[337353567,1725625853278,-500.0,0.00019178,2]
[337353569,1725625853289,-500.0,0.00019178,2]
[337353571,1725625853299,-500.0,0.00019178,2]
[337353573,1725625853316,-675.34,0.00019178,2]
[337353575,1725625853327,-1253.38,0.00019178,2]
[337353577,1725625853337,-5033.94,0.00019178,2]
[337353579,1725625853346,-500.0,0.00019178,2]
[337353581,1725625853357,-612.64,0.00019178,2]
[337353583,1725625853367,-500.0,0.00019178,2]
[337353585,1725625853377,-500.0,0.00019178,2]
[337353587,1725625853387,-500.0,0.00019178,2]
[337353589,1725625853399,-669.13,0.00019178,2]
[337353591,1725625853411,-500.0,0.00019178,2]
[337353593,1725625853422,-500.0,0.00019178,2]
[337353595,1725625853432,-1963.85,0.00019178,2]
[337353597,1725625853444,-3100.43,0.00019178,2]
[337353599,1725625853454,-526.84,0.00019178,2]
[337353601,1725625853465,-500.0,0.00019178,2]
[337353603,1725625853475,-500.0,0.00019178,2]
[337353605,1725625853486,-500.0,0.00019178,2]
[337353607,1725625853496,-197.69849944,0.00019178,2]
[337353609,1725625853506,-500.0,0.00019178,2]
[337353611,1725625853516,-2074.79,0.00019178,2]
[337353614,1725625853527,-500.0,0.00019178,2]
[337353616,1725625853539,-500.0,0.00019178,2]
[337353618,1725625853551,-504.52283279,0.00019178,2]
[337353620,1725625853562,-500.0,0.00019178,2]
[337353622,1725625853572,-500.0,0.00019178,2]
[337353624,1725625853583,-500.0,0.00019178,2]
[337353626,1725625853594,-500.0,0.00019178,2]
[337353628,1725625853605,-151.0,0.00019178,2]
[337353631,1725625853618,-151.0,0.00019178,2]
[337353633,1725625853638,-151.0,0.00019178,2]
[337353635,1725625853649,-690.58,0.00019178,2]
[337353637,1725625853662,-500.0,0.00019178,2]
[337353639,1725625853676,-151.0,0.00019178,2]
[337353641,1725625853686,-151.0,0.00019178,2]
[337353644,1725625853699,-151.0,0.00019178,2]
[337353646,1725625853709,-500.0,0.00019178,2]
[337353648,1725625853721,-411.73552016,0.00019178,2]
[337353650,1725625853732,-912.1,0.00019178,2]
[337353652,1725625853741,-469.8042937,0.00019178,2]
[337353654,1725625853751,-500.0,0.00019178,2]
[337353656,1725625853764,-685.24,0.00019178,2]
[337353658,1725625853779,-1535.68,0.00019178,2]
[337353660,1725625853793,-500.0,0.00019178,2]
[337353662,1725625853803,-993.62,0.00019178,2]
[337353664,1725625853815,-648.23,0.00019178,2]
[337353666,1725625853826,-500.0,0.00019178,2]
[337353668,1725625853836,-1827.53,0.00019178,2]
[337353670,1725625853846,-151.0,0.00019178,2]
[337353672,1725625853857,-151.0,0.00019178,2]
[337353674,1725625853868,-2074.26,0.00019178,2]
[337353676,1725625853879,-500.0,0.00019178,2]
[337353678,1725625853897,-151.0,0.00019178,2]
[337353680,1725625853920,-151.0,0.00019178,2]
[337353682,1725625853935,-224.27148364,0.00019178,2]
[337353684,1725625853945,-1879.17,0.00019178,2]
[337353685,1725625853955,-500.0,0.00019178,2]
[337353687,1725625853966,-500.0,0.00019178,2]
[337353690,1725625853977,-3029.51,0.00019178,2]
[337353691,1725625853986,-3583.08,0.00019178,2]
[337353693,1725625853996,-500.0,0.00019178,2]
[337353695,1725625854007,-500.0,0.00019178,2]
[337353697,1725625854017,-50341.44,0.00019178,2]
[337353699,1725625854034,-151.0,0.00019178,2]
[337353701,1725625854045,-151.0,0.00019178,2]
[337353703,1725625854057,-151.0,0.00019178,2]
[337353706,1725625854070,-3839.93,0.00019178,2]
[337353708,1725625854080,-1837.76,0.00019178,2]
[337353710,1725625854091,-1123.46,0.00019178,2]
[337353712,1725625854103,-1475.95,0.00019178,2]
[337353713,1725625854112,-500.0,0.00019178,2]
[337353715,1725625854123,-151.0,0.00019178,2]
[337353717,1725625854133,-151.0,0.00019178,2]
[337353720,1725625854144,-151.0,0.00019178,2]
[337353722,1725625854153,-151.0,0.00019178,2]
[337353723,1725625854163,-500.0,0.00019178,2]
[337353725,1725625854174,-151.0,0.00019178,2]
[337353728,1725625854184,-3024.499952,0.00019178,2]
[337353730,1725625854194,-500.0,0.00019178,2]
[337353731,1725625854204,-1447.97,0.00019178,2]
[337353734,1725625854214,-151.0,0.00019178,2]
[337353736,1725625854226,-500.0,0.00019178,2]
[337353738,1725625854236,-151.0,0.00019178,2]
[337353740,1725625854245,-3024.499952,0.00019178,2]
[337353742,1725625854255,-3024.499952,0.00019178,2]
[337353744,1725625854265,-500.0,0.00019178,2]
[337353746,1725625854282,-3024.499952,0.00019178,2]
[337353748,1725625854297,-500.0,0.00019178,2]
[337353750,1725625854307,-500.0,0.00019178,2]
[337353752,1725625854317,-500.0,0.00019178,2]
[337353754,1725625854326,-2387.04,0.00019178,2]
[337353755,1725625854336,-500.0,0.00019178,2]
[337353757,1725625854346,-3024.499952,0.00019178,2]
[337353759,1725625854356,-3024.499952,0.00019178,2]
[337353761,1725625854366,-500.0,0.00019178,2]
[337353763,1725625854377,-3024.499952,0.00019178,2]
[337353765,1725625854387,-500.0,0.00019178,2]
[337353767,1725625854397,-3024.499952,0.00019178,2]
[337353769,1725625854407,-3397.76,0.00019178,2]
[337353771,1725625854417,-500.0,0.00019178,2]
[337353788,1725625854428,-500.0,0.00019178,2]
[337353789,1725625854655,-500.0,0.00019178,2]
[337353790,1725625854666,-500.0,0.00019178,2]
[337353791,1725625854680,-1838.36,0.00019178,2]
[337353792,1725625854690,-500.0,0.00019178,2]
[337353793,1725625854700,-1704.96,0.00019178,2]
[337353794,1725625854711,-500.0,0.00019178,2]
[337353795,1725625854722,-500.0,0.00019178,2]
[337353796,1725625854732,-500.0,0.00019178,2]
[337353797,1725625854743,-603.27,0.00019178,2]
[337353798,1725625854753,-500.0,0.00019178,2]
[337353799,1725625854762,-500.0,0.00019178,2]
[337353800,1725625854772,-500.0,0.00019178,2]
[337353802,1725625854794,-642.03126709,0.00019178,2]
[337353804,1725625854806,-2433.94,0.00019178,2]
[337353806,1725625854816,-500.0,0.00019178,2]
[337353808,1725625854828,-500.0,0.00019178,2]
[337353810,1725625854839,-500.0,0.00019178,2]
[337353812,1725625854849,-500.0,0.00019178,2]
[337353814,1725625854858,-2347.82,0.00019178,2]
[337353816,1725625854869,-500.0,0.00019178,2]
[337353818,1725625854879,-1576.49,0.00019178,2]
[337353820,1725625854888,-532.12,0.00019178,2]
[337353822,1725625854898,-500.0,0.00019178,2]
[337353824,1725625854907,-500.0,0.00019178,2]
[337353826,1725625854919,-500.0,0.00019178,2]
[337353829,1725625854931,-1087.16,0.00019178,2]
[337353831,1725625854941,-3216.65,0.00019178,2]
[337353833,1725625854951,-500.0,0.00019178,2]
[337353835,1725625854961,-845.75,0.00019178,2]
[337353837,1725625854970,-500.0,0.00019178,2]
[337353838,1725625854979,-500.0,0.00019178,2]
[337353841,1725625854989,-1608.24,0.00019178,2]
[337353843,1725625854999,-547.87,0.00019178,2]
[337353845,1725625855010,-2092.6291184,0.00019178,2]
[337353912,1725625855654,-812.6508816,0.00019178,2]
[337353914,1725625855667,-500.0,0.00019178,2]
[337353916,1725625855677,-500.0,0.00019178,2]
[337353918,1725625855688,-1290.35,0.00019178,2]
[337353920,1725625855697,-682.43848977,0.00019178,2]
[337353923,1725625855710,-2125.46151023,0.00019178,2]
[337353925,1725625855719,-500.0,0.00019178,2]
[337353927,1725625855729,-470.52848977,0.00019178,2]
[337355817,1725625877159,165.133202,0.00018279,2]
[337355835,1725625877352,165.133202,0.00018329,2]
[337355859,1725625877581,165.133202,0.00018379,2]
[337355938,1725625878385,165.133202,0.00018429,2]
[337355945,1725625878611,165.133202,0.00018479,2]
[337355967,1725625878839,165.133202,0.0001853,2]
[337355989,1725625879055,165.133202,0.0001858,2]
[337356014,1725625879281,165.133202,0.0001863,2]
[337356033,1725625879490,165.133202,0.0001868,2]
[337356061,1725625879764,165.133202,0.0001873,2]
[337356110,1725625880267,165.133202,0.0001878,2]
[337356147,1725625880635,165.133202,0.0001883,2]
[337356154,1725625880699,165.133202,0.00018881,2]
[337356165,1725625880809,165.133202,0.00018931,2]
[337356177,1725625880916,165.133202,0.00018981,2]
[337360971,1725625962678,21309.87250424,0.00018931,2]
[337360974,1725626014322,1632.04108255,0.00018965,2]
[337360994,1725626270019,2000.0,0.000185,2]
[337360995,1725626288940,1600.510011,0.00019,2]
[337361035,1725626430341,165.133202,0.00018188,2]
[337361036,1725626430544,165.133202,0.00018425,2]
[337361037,1725626430852,165.133202,0.00018662,2]
[337361038,1725626431014,165.133202,0.00018899,2]
[337361039,1725626452304,8839.467192,0.00018057,2]
[337361057,1725626758572,10000.0,0.00018,2]
[337361071,1725626951119,-300.0,0.00018056,2]
[337361072,1725626951141,-4819.95816237,0.00018057,2]
[337361118,1725627031892,-300.0,0.00018004,2]
[337361120,1725627031902,-300.0,0.00018004,2]
[337361122,1725627031912,-8486.3565783,0.00018005,2]
[337361124,1725627031924,-1949.08501326,0.00018005,2]
[337361639,1725627038119,-764.53303264,0.00018005,2]
[337361640,1725627038130,-1000.0,0.0001887,2]
[337361642,1725627038140,-977.01502749,0.00018882,2]
[337361644,1725627038150,-1000.0,0.00018914,2]
[337361646,1725627038161,-1428.03594724,0.00018925,2]
[337361648,1725627038171,-1000.0,0.00018938,2]
[337361650,1725627038180,-5991.08644228,0.0001895,2]